bitfinex/quotes_SOLUSD_20250413
["timestamp","ask_amount","ask_price","bid_price","bid_amount"]
[1744517691904,47.36397435,131.35,131.34,0.063]
[1744517692107,66.01362321,131.35,131.34,0.063]
[1744517692703,47.22181278,131.35,131.34,0.063]
[1744517694310,47.36397435,131.35,131.34,0.063]
[1744517694521,66.01362321,131.35,131.34,0.063]
[1744517694711,47.36397435,131.35,131.34,0.063]
[1744517695387,66.01362321,131.35,131.34,0.063]
[1744517695590,47.36397435,131.35,131.34,0.063]
[1744517697808,47.22181278,131.35,131.34,0.063]
[1744517698315,47.36397435,131.35,131.34,0.063]
[1744517699129,47.22181278,131.35,131.34,0.063]
[1744517699418,47.36397435,131.35,131.34,0.063]
[1744517700823,18.64964886,131.34,131.3,0.063]
[1744517701023,39.75077435,131.31,131.3,0.063]
[1744517702305,58.68474635,131.31,131.3,0.063]
[1744517703525,39.87436164,131.3,131.29,0.063]
[1744517706123,26.42648471,131.31,131.29,0.063]
[1744517706124,13.60861278,131.31,131.29,0.063]
[1744517706325,39.60861278,131.31,131.29,0.063]
[1744517706510,26.0,131.31,131.29,0.063]
[1744517706697,13.60861278,131.3,131.29,0.063]
[1744517707821,26.0,131.31,131.29,0.063]
[1744517708017,39.60861278,131.31,131.29,0.063]
[1744517708207,88.02,131.34,131.29,0.063]
[1744517708522,13.60861278,131.31,131.29,0.063]
[1744517708825,13.60861278,131.3,131.29,0.063]
[1744517709221,21.22471278,131.3,131.29,0.063]
[1744517710811,40.01652321,131.3,131.29,0.063]
[1744517711010,41.86744635,131.3,131.28,0.063]
[1744517711212,44.64964886,131.28,131.27,0.063]
[1744517711412,0.14216157,131.27,131.25,0.063]
[1744517711635,32.25826164,131.26,131.25,0.063]
[1744517711803,113.40042321,131.26,131.25,0.063]
[1744517712420,113.68474635,131.26,131.25,0.063]
[1744517712635,121.30314635,131.26,131.25,0.063]
[1744517714434,18.64964886,131.25,131.22,0.063]
[1744517714633,26.14216157,131.23,131.22,0.063]
[1744517714839,39.75077435,131.23,131.22,0.063]
[1744517715213,58.40042321,131.23,131.22,0.063]
[1744517715537,0.14216157,131.18,131.16,0.063]
[1744517715836,13.75077435,131.17,131.16,0.063]
[1744517716213,13.60861278,131.17,131.16,0.063]
[1744517716440,32.68474635,131.17,131.16,0.063]
[1744517716633,26.0,131.14,131.07,15.3789]
[1744517716835,13.60861278,131.1,131.07,7.7499]
[1744517717515,13.60861278,131.11,131.07,7.7499]
[1744517717721,13.60861278,131.12,131.1,0.063]
[1744517718412,0.14216157,131.15,131.1,13.67161278]
[1744517718413,13.60861278,131.15,131.1,13.67161278]
[1744517718736,13.60861278,131.15,131.1,21.29881278]
[1744517718939,13.60861278,131.14,131.1,7.6902]
[1744517719240,13.60861278,131.13,131.1,0.063]
[1744517719440,13.60861278,131.11,131.1,0.063]
[1744517719735,13.60861278,131.12,131.1,0.063]
[1744517721030,81.0,131.17,131.1,0.063]
[1744517721238,39.60861278,131.15,131.1,0.063]
[1744517721433,39.60861278,131.15,131.1,13.67161278]
[1744517722061,26.0,131.15,131.11,13.60861278]
[1744517722537,26.0,131.15,131.1,13.67161278]
[1744517722731,13.60861278,131.16,131.11,21.23571278]
[1744517724550,13.60861278,131.16,131.11,7.6271]
[1744517724735,13.60861278,131.16,131.11,21.23571278]
[1744517724934,13.60861278,131.16,131.11,7.6271]
[1744517725243,13.60861278,131.15,131.1,21.29911278]
[1744517725540,13.60861278,131.16,131.11,13.60861278]
[1744517725743,13.60861278,131.16,131.1,21.29911278]
[1744517726245,88.6233,131.18,131.1,21.29911278]
[1744517726246,94.60861278,131.18,131.13,13.60861278]
[1744517726538,13.60861278,131.17,131.13,7.6256]
[1744517727440,13.60861278,131.16,131.12,7.6264]
[1744517727827,13.60861278,131.17,131.12,21.23501278]
[1744517728531,81.0,131.18,131.12,21.23501278]
[1744517728844,94.60861278,131.18,131.13,21.50611278]
[1744517729341,44.79181043,131.14,131.1,0.063]
[1744517729536,13.60861278,131.12,131.1,0.063]
[1744517730139,18.79181043,131.14,131.1,0.063]
[1744517730140,39.60861278,131.11,131.1,0.063]
[1744517730641,47.23571278,131.11,131.1,0.063]
[1744517730843,47.37787435,131.11,131.1,0.063]
[1744517731347,47.23571278,131.11,131.1,0.063]
[1744517731814,39.60861278,131.11,131.1,0.063]
[1744517732143,13.60861278,131.13,131.1,0.063]
[1744517732444,13.60861278,131.12,131.1,0.063]
[1744517732619,39.60861278,131.12,131.1,0.063]
[1744517732918,13.60861278,131.11,131.1,0.063]
[1744517735938,21.23571278,131.11,131.1,0.063]
[1744517737346,13.60861278,131.11,131.1,0.063]
[1744517737523,7.6267,131.12,131.1,0.063]
[1744517737724,13.60861278,131.11,131.1,0.063]
[1744517739134,0.14216157,131.15,131.1,0.063]
[1744517739332,13.60861278,131.12,131.1,0.063]
[1744517739526,13.60861278,131.11,131.1,0.063]
[1744517743237,13.60861278,131.13,131.1,0.063]
[1744517744365,13.60861278,131.14,131.1,0.063]
[1744517745464,13.60861278,131.13,131.1,0.063]
[1744517746454,13.60861278,131.14,131.1,0.34732314]
[1744517746639,39.60861278,131.14,131.1,0.34732314]
[1744517747439,13.60861278,131.13,131.11,7.6271]
[1744517747642,13.60861278,131.12,131.1,0.063]
[1744517748465,13.60861278,131.11,131.1,0.063]
[1744517750560,13.60861278,131.12,131.1,0.063]
[1744517751440,13.60861278,131.11,131.1,0.063]
[1744517751749,13.60861278,131.12,131.1,0.063]
[1744517752765,13.60861278,131.13,131.1,0.063]
[1744517754367,13.60861278,131.12,131.1,0.063]
[1744517754551,13.60861278,131.13,131.1,0.063]
[1744517755371,13.60861278,131.12,131.1,0.063]
[1744517755667,13.60861278,131.11,131.1,0.063]
[1744517757573,21.23571278,131.11,131.1,0.063]
[1744517758067,21.37787435,131.11,131.1,0.063]
[1744517758266,26.0,131.07,131.04,0.063]
[1744517758459,13.60861278,131.05,131.04,0.063]
[1744517758847,81.0,131.1,131.04,0.063]
[1744517759044,81.0,131.1,131.03,13.17161278]
[1744517759246,13.60861278,131.08,131.04,7.6312]
[1744517760471,7.2,131.12,131.05,32.54258478]
[1744517760774,13.60861278,131.11,131.06,1.5775]
[1744517761271,13.60861278,131.12,131.07,13.89293592]
[1744517761862,13.60861278,131.11,131.07,0.28432314]
[1744517762172,7.6254,131.14,131.07,0.28432314]
[1744517762472,89.1332,131.15,131.09,0.28432314]
[1744517762674,89.1332,131.15,131.11,0.28432314]
[1744517762675,81.0,131.15,131.11,0.28432314]
[1744517762878,13.60861278,131.17,131.12,13.60861278]
[1744517763089,13.60861278,131.18,131.13,0.28432314]
[1744517763251,13.60861278,131.17,131.13,0.28432314]
[1744517763455,13.60861278,131.18,131.13,13.89293592]
[1744517763862,13.60861278,131.18,131.14,18.64964886]
[1744517764064,13.60861278,131.2,131.17,0.28432314]
[1744517764256,0.03,131.22,131.17,0.28432314]
[1744517764257,13.63861278,131.22,131.18,7.6231]
[1744517764450,13.60861278,131.21,131.18,7.6231]
[1744517765155,0.03,131.22,131.18,7.6231]
[1744517765361,13.60861278,131.21,131.18,7.6231]
[1744517766059,0.03,131.22,131.18,26.6808]
[1744517766259,13.60861278,131.2,131.18,7.6231]
[1744517767116,13.60861278,131.19,131.18,7.6231]
[1744517767688,13.60861278,131.19,131.13,13.1679]
[1744517767870,13.60861278,131.16,131.13,13.1679]
[1744517768590,13.60861278,131.16,131.14,7.6254]
[1744517769481,13.60861278,131.15,131.13,7.6258]
[1744517770178,26.0,131.16,131.09,66.67906164]
[1744517770369,13.60861278,131.13,131.09,53.07044886]
[1744517770563,13.60861278,131.13,131.1,0.28432314]
[1744517770766,13.60861278,131.12,131.1,7.6277]
[1744517771786,13.60861278,131.11,131.09,7.6282]
[1744517772096,13.60861278,131.12,131.09,7.6282]
[1744517772988,13.60861278,131.12,131.08,7.6289]
[1744517773388,13.60861278,131.12,131.08,26.7012]
[1744517773587,13.60861278,131.12,131.09,0.28432314]
[1744517773761,14.7838,131.17,131.09,0.28432314]
[1744517773762,13.60861278,131.13,131.09,0.28432314]
[1744517774282,13.60861278,131.13,131.09,18.933972]
[1744517774484,13.60861278,131.13,131.09,0.28432314]
[1744517774788,13.60861278,131.11,131.08,7.6289]
[1744517775487,13.60861278,131.09,131.05,6.5571]
[1744517775691,13.60861278,131.08,131.03,13.60861278]
[1744517775990,13.60861278,131.08,131.04,0.28432314]
[1744517776193,13.60861278,131.08,131.03,40.32001278]
[1744517776381,13.60861278,131.09,131.04,32.25826164]
[1744517776588,13.60861278,131.09,131.05,0.28432314]
[1744517776782,13.60861278,131.1,131.05,32.54258478]
[1744517776986,13.60861278,131.11,131.08,0.28432314]
[1744517777190,13.60861278,131.11,131.06,13.60861278]
[1744517777494,13.60861278,131.1,131.06,7.91432314]
[1744517778493,81.0,131.15,131.07,18.64964886]
[1744517778684,13.60861278,131.12,131.08,0.28432314]
[1744517779490,13.60861278,131.12,131.09,7.6283]
[1744517780696,13.60861278,131.13,131.09,7.6283]
[1744517780905,13.60861278,131.14,131.09,7.6283]
[1744517781383,13.60861278,131.13,131.09,7.6283]
[1744517781899,13.60861278,131.15,131.1,0.28432314]
[1744517782201,13.60861278,131.15,131.1,13.89293592]
[1744517782493,0.03,131.17,131.1,18.933972]
[1744517782675,13.60861278,131.15,131.1,18.933972]
[1744517783594,13.60861278,131.15,131.11,7.6271]
[1744517784789,0.03,131.17,131.12,0.28432314]
[1744517784790,13.63861278,131.17,131.12,0.28432314]
[1744517784986,13.63861278,131.17,131.12,32.54258478]
[1744517785680,13.63861278,131.17,131.13,7.626]
[1744517787498,13.60861278,131.16,131.13,7.626]
[1744517787892,0.03,131.17,131.1,13.60861278]
[1744517787893,13.60861278,131.15,131.1,13.60861278]
[1744517788089,13.60861278,131.14,131.1,7.6277]
[1744517788295,7.654,131.17,131.06,19.0738]
[1744517788296,13.60861278,131.11,131.06,19.0738]
[1744517788498,13.60861278,131.09,131.06,7.63]
[1744517788799,13.60861278,131.1,131.06,7.63]
[1744517788998,13.60861278,131.08,131.06,7.63]
[1744517789305,13.60861278,131.09,131.06,7.63]
[1744517789611,13.60861278,131.1,131.06,7.63]
[1744517789806,13.60861278,131.09,131.06,7.63]
[1744517790299,13.60861278,131.08,131.03,13.60861278]
[1744517790478,13.60861278,131.07,131.02,8.7564]
[1744517790675,13.60861278,131.07,131.02,22.36501278]
[1744517791106,0.14216157,131.1,131.02,22.36501278]
[1744517791401,13.60861278,131.07,131.03,7.6318]
[1744517791783,13.60861278,131.08,131.03,21.24041278]
[1744517791993,13.60861278,131.09,131.04,13.89293592]
[1744517792499,13.60861278,131.09,131.04,0.28432314]
[1744517792899,13.60861278,131.09,131.04,18.933972]
[1744517793099,81.0,131.11,131.05,13.60861278]
[1744517793279,13.60861278,131.1,131.05,13.60861278]
[1744517793479,13.60861278,131.09,131.04,32.54258478]
[1744517793682,13.60861278,131.1,131.06,0.28432314]
[1744517794098,13.60861278,131.09,131.05,26.7072]
[1744517794383,13.60861278,131.1,131.05,26.7072]
[1744517794680,13.60861278,131.1,131.05,40.31581278]
[1744517795093,13.60861278,131.1,131.05,26.7072]
[1744517795701,13.60861278,131.09,131.05,7.6306]
[1744517796007,81.0,131.11,131.05,7.6306]
[1744517796008,13.60861278,131.08,131.05,7.6306]
[1744517796206,13.60861278,131.07,131.05,7.6306]
[1744517796506,13.60861278,131.08,131.05,7.6306]
[1744517797188,88.6272,131.11,131.05,7.6306]
[1744517797389,13.60861278,131.09,131.04,21.52413592]
[1744517797584,13.60861278,131.09,131.04,40.60223592]
[1744517797899,13.60861278,131.1,131.05,13.60861278]
[1744517798408,13.60861278,131.1,131.06,0.28432314]
[1744517798799,81.0,131.11,131.06,13.89293592]
[1744517798997,94.60861278,131.11,131.06,13.89293592]
[1744517799199,88.9201,131.16,131.08,13.60861278]
[1744517799495,88.9201,131.16,131.09,21.23691278]
[1744517799496,13.60861278,131.14,131.09,21.23691278]
[1744517799706,13.60861278,131.15,131.11,13.60861278]
[1744517800082,13.60861278,131.14,131.1,0.28432314]
[1744517800291,13.60861278,131.15,131.1,13.89293592]
[1744517801009,94.60861278,131.16,131.11,13.60861278]
[1744517801216,81.0,131.16,131.13,13.60861278]
[1744517801520,0.03,131.17,131.13,13.89293592]
[1744517801690,0.03,131.17,131.16,13.60861278]
[1744517801885,0.0001,131.17,131.16,34.30004635]
[1744517803309,0.0001,131.17,131.16,50.11208421]
[1744517804112,0.0001,131.22,131.21,0.28432314]
[1744517804412,0.0001,131.22,131.21,40.73042264]
[1744517804988,0.0001,131.22,131.21,18.933972]
[1744517805402,0.0001,131.22,131.21,48.35172264]
[1744517806917,0.03,131.23,131.21,48.49388421]
[1744517807141,0.03,131.25,131.24,22.08077378]
[1744517807429,0.03,131.25,131.23,7.6202]
[1744517808830,21.79645064,131.24,131.21,7.6213]
[1744517809013,21.79645064,131.23,131.21,7.6213]
[1744517809515,21.79645064,131.23,131.19,7.6225]
[1744517810526,0.03,131.25,131.19,7.6225]
[1744517810833,21.79645064,131.22,131.19,7.6225]
[1744517811620,21.79645064,131.22,131.18,26.6795]
[1744517811824,0.03,131.25,131.18,26.6795]
[1744517812023,21.79645064,131.22,131.18,26.6795]
[1744517812522,0.03,131.25,131.18,7.6231]
[1744517812523,21.79645064,131.21,131.18,7.6231]
[1744517813222,21.79645064,131.22,131.18,7.6231]
[1744517814928,21.79645064,131.2,131.16,7.6242]
[1744517815105,18.82181043,131.25,131.16,7.6242]
[1744517815106,21.79645064,131.19,131.16,7.6242]
[1744517815610,21.79645064,131.2,131.16,7.6242]
[1744517815811,21.79645064,131.19,131.16,7.6242]
[1744517816010,21.79645064,131.2,131.15,7.90912314]
[1744517816731,21.79645064,131.2,131.15,26.97122314]
[1744517817138,21.79645064,131.19,131.15,26.97122314]
[1744517818808,21.79645064,131.18,131.15,7.6248]
[1744517819010,21.79645064,131.16,131.12,0.063]
[1744517819215,21.79645064,131.14,131.13,7.626]
[1744517819412,21.79645064,131.14,131.12,0.063]
[1744517819663,7.30216157,131.18,131.12,0.063]
[1744517819664,21.79645064,131.13,131.12,0.063]
[1744517819809,21.79645064,131.15,131.12,0.063]
[1744517820006,7.30216157,131.18,131.12,0.063]
[1744517820209,21.79645064,131.13,131.12,0.063]
[1744517820636,21.79645064,131.14,131.12,0.063]
[1744517820818,21.79645064,131.13,131.12,0.063]
[1744517821138,0.14216157,131.16,131.12,0.063]
[1744517821139,21.79645064,131.15,131.12,0.063]
[1744517821436,21.79645064,131.14,131.12,0.063]
[1744517822132,21.79645064,131.13,131.12,0.063]
[1744517823115,21.79645064,131.14,131.12,0.063]
[1744517823443,21.79645064,131.15,131.12,0.063]
[1744517824121,81.0,131.16,131.12,0.063]
[1744517824122,21.79645064,131.14,131.12,0.063]
[1744517824442,21.79645064,131.15,131.12,0.063]
[1744517825239,81.0,131.16,131.12,0.063]
[1744517825415,13.64188714,131.15,131.12,0.063]
[1744517825617,13.64188714,131.14,131.12,0.063]
[1744517826041,81.0,131.16,131.12,0.063]
[1744517826252,13.64188714,131.14,131.12,0.063]
[1744517826915,94.64188714,131.16,131.12,0.063]
[1744517827451,13.64188714,131.15,131.12,0.063]
[1744517828118,13.64188714,131.14,131.12,0.063]
[1744517828335,81.0,131.16,131.12,0.063]
[1744517828336,94.64188714,131.16,131.12,0.063]
[1744517828522,13.64188714,131.18,131.13,13.64188714]
[1744517828923,13.64188714,131.18,131.12,13.98921028]
[1744517829222,13.64188714,131.17,131.12,13.98921028]
[1744517829546,13.64188714,131.16,131.12,0.34732314]
[1744517829741,13.64188714,131.17,131.12,13.98921028]
[1744517830751,81.0,131.2,131.13,7.626]
[1744517830934,13.64188714,131.19,131.14,0.28432314]
[1744517831126,81.0,131.24,131.18,13.92621028]
[1744517831321,13.64188714,131.23,131.18,13.92621028]
[1744517831627,81.0,131.24,131.18,0.28432314]
[1744517831950,13.64188714,131.23,131.18,0.28432314]
[1744517832122,94.64188714,131.24,131.19,13.64188714]
[1744517832323,13.64188714,131.23,131.18,0.28432314]
[1744517832547,13.64188714,131.22,131.18,0.28432314]
[1744517832733,13.64188714,131.23,131.19,7.6225]
[1744517833833,88.76186157,131.24,131.16,7.6242]
[1744517834151,13.64188714,131.17,131.13,7.626]
[1744517834440,13.64188714,131.2,131.13,7.626]
[1744517834441,13.64188714,131.16,131.13,7.626]
[1744517834662,13.64188714,131.17,131.13,7.626]
[1744517835242,21.96728282,131.2,131.13,7.626]
[1744517835443,21.82512125,131.16,131.13,7.626]
[1744517835829,21.82512125,131.18,131.13,48.51612125]
[1744517836027,21.82512125,131.17,131.13,26.691]
[1744517836458,21.82512125,131.16,131.13,7.626]
[1744517836756,21.82512125,131.15,131.13,7.626]
[1744517837044,21.82512125,131.16,131.12,7.97392314]
[1744517837754,21.82512125,131.15,131.12,7.6896]
[1744517837940,26.0,131.1,131.06,0.063]
[1744517838132,26.0,131.09,131.06,0.063]
[1744517838445,21.82512125,131.07,131.06,0.063]
[1744517838650,26.0,131.09,131.06,0.063]
[1744517838849,21.82512125,131.07,131.06,0.063]
[1744517839229,26.0,131.09,131.06,0.063]
[1744517839544,21.82512125,131.07,131.06,0.063]
[1744517839745,26.0,131.09,131.06,0.063]
[1744517839942,21.82512125,131.07,131.06,0.063]
[1744517840350,21.96728282,131.07,131.06,0.063]
[1744517840849,21.82512125,131.07,131.06,0.063]
[1744517841233,21.96728282,131.07,131.06,0.063]
[1744517841447,29.59678282,131.07,131.06,0.063]
[1744517842042,21.82512125,131.07,131.06,0.063]
[1744517842448,29.59678282,131.07,131.06,0.063]
[1744517842745,21.82512125,131.07,131.06,0.063]
[1744517843252,0.14216157,131.12,131.06,0.063]
[1744517843549,47.82512125,131.1,131.06,0.063]
[1744517843754,81.0,131.13,131.06,21.88812125]
[1744517843943,81.0,131.13,131.07,21.82512125]
[1744517844134,81.0,131.13,131.07,0.28432314]
[1744517844135,102.82512125,131.13,131.07,0.28432314]
[1744517844331,102.82512125,131.13,131.08,21.82512125]
[1744517844529,26.0,131.14,131.1,21.82512125]
[1744517844956,21.82512125,131.15,131.1,21.82512125]
[1744517845253,21.82512125,131.15,131.1,29.45252125]
[1744517845659,47.82512125,131.14,131.1,7.6274]
[1744517846051,26.0,131.14,131.1,7.6274]
[1744517846256,47.82512125,131.14,131.1,7.6274]
[1744517846563,81.0,131.17,131.12,21.82512125]
[1744517846739,81.0,131.17,131.13,21.82512125]
[1744517847346,26.0,131.18,131.14,21.82512125]
[1744517847858,107.27114886,131.21,131.15,21.82512125]
[1744517847859,81.0,131.21,131.15,21.82512125]
[1744517848160,21.82512125,131.2,131.16,7.6242]
[1744517848950,21.82512125,131.19,131.15,7.6246]
[1744517849162,88.6214,131.21,131.15,7.6246]
[1744517849365,0.14216157,131.24,131.17,21.82512125]
[1744517849560,21.82512125,131.22,131.17,21.82512125]
[1744517849737,21.82512125,131.21,131.16,21.82512125]
[1744517850341,21.82512125,131.21,131.17,7.6236]
[1744517851151,0.03,131.23,131.19,21.82512125]
[1744517851462,0.03,131.23,131.18,0.28432314]
[1744517851760,0.03,131.23,131.2,21.82512125]
[1744517851962,0.03,131.23,131.22,22.10944439]
[1744517852464,0.03,131.23,131.22,29.73014439]
[1744517852946,0.03,131.23,131.22,48.37979325]
[1744517853151,0.03,131.25,131.24,21.82512125]
[1744517853560,0.03,131.25,131.23,0.28432314]
[1744517853765,0.03,131.25,131.23,22.10944439]
[1744517854265,0.03,131.25,131.24,7.6196]
[1744517854467,0.03,131.25,131.24,29.44472125]
[1744517855054,0.03,131.25,131.24,7.6196]
[1744517856176,0.03,131.25,131.24,29.44472125]
[1744517856748,0.03,131.25,131.24,29.72904439]
[1744517857355,0.0001,131.25,131.24,48.52085482]
[1744517857560,0.0001,131.25,131.24,29.72904439]
[1744517857754,0.0001,131.25,131.24,48.52085482]
[1744517857983,0.03,131.29,131.26,0.14216157]
[1744517858276,0.03,131.29,131.28,40.75909325]
[1744517858470,0.0001,131.29,131.28,48.51855482]
[1744517860585,0.0001,131.29,131.28,48.37639325]
[1744517861681,0.0001,131.29,131.28,48.51855482]
[1744517862062,0.0001,131.29,131.28,70.34367607]
[1744517862283,0.03,131.31,131.3,26.14216157]
[1744517862463,0.03,131.35,131.31,0.28432314]
[1744517862664,0.03,131.35,131.34,22.10944439]
[1744517863287,0.03,131.35,131.34,0.28432314]
[1744517863467,0.03,131.35,131.32,21.82512125]
[1744517863672,0.03,131.35,131.31,21.82512125]
[1744517864479,0.03,131.35,131.31,29.44042125]
[1744517865386,21.85512125,131.35,131.31,7.6153]
[1744517865683,21.85512125,131.35,131.3,29.72534439]
[1744517869486,29.46842125,131.35,131.3,7.6159]
[1744517870577,0.03,131.35,131.3,29.44102125]
[1744517870771,21.85512125,131.35,131.3,29.44102125]
[1744517872085,0.03,131.35,131.32,21.82512125]
[1744517872294,0.03,131.35,131.33,21.82512125]
[1744517872491,0.03,131.35,131.32,21.82512125]
[1744517873695,0.03,131.35,131.31,21.82512125]
[1744517873868,0.03,131.35,131.3,21.82512125]
[1744517874392,0.03,131.35,131.31,21.82512125]
[1744517875394,0.03,131.35,131.32,7.6149]
[1744517875575,0.03,131.35,131.32,29.44002125]
[1744517876081,0.03,131.35,131.32,7.6149]
[1744517876460,0.03,131.35,131.33,21.82512125]
[1744517877485,0.03,131.35,131.33,29.43932125]
[1744517878898,0.03,131.35,131.34,40.47477011]
[1744517879477,0.03,131.35,131.34,48.51505482]
[1744517880395,0.03,131.35,131.34,48.37289325]
[1744517881068,0.03,131.35,131.34,48.51505482]
[1744517881471,0.03,131.37,131.35,0.42648471]
[1744517881674,0.03,131.37,131.36,22.25160596]
[1744517882474,0.03,131.37,131.36,22.10944439]
[1744517882674,0.03,131.37,131.36,0.28432314]
[1744517882992,0.03,131.37,131.36,22.10944439]
[1744517883198,0.03,131.37,131.36,40.75909325]
[1744517883394,0.03,131.39,131.36,40.75909325]
[1744517883395,0.03,131.39,131.38,44.79181043]
[1744517883580,0.03,131.39,131.38,78.3084792]
[1744517883768,0.03,131.39,131.38,52.3084792]
[1744517884098,0.03,131.39,131.38,29.72094439]
[1744517884285,0.03,131.39,131.36,21.82512125]
[1744517884491,21.82512125,131.38,131.33,7.6144]
[1744517884700,21.82512125,131.38,131.33,29.43952125]
[1744517885474,0.03,131.39,131.33,29.43952125]
[1744517885877,21.85512125,131.39,131.34,21.82512125]
[1744517886686,21.85512125,131.39,131.35,7.6132]
[1744517886880,21.82512125,131.38,131.33,21.82512125]
[1744517887079,21.82512125,131.38,131.32,29.43992125]
[1744517887288,21.82512125,131.34,131.29,7.6167]
[1744517887479,21.82512125,131.33,131.29,7.6167]
[1744517887795,21.82512125,131.35,131.3,21.82512125]
[1744517887998,21.82512125,131.36,131.31,21.82512125]
[1744517888179,21.82512125,131.38,131.32,21.82512125]
[1744517888385,21.82512125,131.37,131.32,21.82512125]
[1744517888799,21.82512125,131.37,131.32,29.43972125]
[1744517888985,21.82512125,131.38,131.33,21.82512125]
[1744517889696,21.82512125,131.36,131.32,7.6146]
[1744517889885,21.82512125,131.37,131.32,29.43972125]
[1744517890288,21.82512125,131.38,131.33,21.82512125]
[1744517890579,21.82512125,131.38,131.31,26.6544]
[1744517890580,21.82512125,131.37,131.32,21.82512125]
[1744517891292,13.59649193,131.37,131.32,13.59649193]
[1744517891502,13.59649193,131.37,131.31,21.21199193]
[1744517892302,13.59649193,131.37,131.32,13.59649193]
[1744517893107,13.59649193,131.36,131.31,7.6155]
[1744517893296,13.59649193,131.35,131.31,7.6155]
[1744517893489,13.59649193,131.36,131.31,7.6155]
[1744517896406,21.20909193,131.36,131.31,7.6155]
[1744517896601,13.59649193,131.35,131.3,7.616]
[1744517896808,13.59649193,131.34,131.3,7.616]
[1744517897492,13.59649193,131.35,131.3,7.616]
[1744517898298,13.59649193,131.35,131.3,21.21249193]
[1744517899490,13.59649193,131.34,131.29,21.21289193]
[1744517899909,13.59649193,131.34,131.29,7.6164]
[1744517900504,21.21069193,131.34,131.29,7.6164]
[1744517900703,13.59649193,131.33,131.29,7.6164]
[1744517901092,13.59649193,131.34,131.29,7.6164]
[1744517901300,13.59649193,131.34,131.29,21.21289193]
[1744517902120,13.59649193,131.33,131.27,7.90212314]
[1744517902414,13.59649193,131.33,131.28,13.59649193]
[1744517902596,13.59649193,131.34,131.29,7.6167]
[1744517902796,13.59649193,131.34,131.29,21.21319193]
[1744517903610,21.21029193,131.34,131.29,21.21319193]
[1744517903800,13.59649193,131.33,131.29,7.6167]
[1744517904106,19.17096157,131.38,131.3,13.59649193]
[1744517904107,13.59649193,131.35,131.3,13.59649193]
[1744517904329,29.4791,131.3,131.25,0.063]
[1744517904489,26.0,131.23,131.2,0.063]
[1744517904703,13.59649193,131.21,131.2,0.063]
[1744517905329,21.81005339,131.21,131.2,0.063]
[1744517905506,0.14216157,131.22,131.2,0.063]
[1744517905707,21.95221496,131.22,131.2,0.063]
[1744517906007,21.81005339,131.21,131.2,0.063]
[1744517906906,21.81005339,131.22,131.2,0.063]
[1744517907620,40.60186382,131.21,131.2,0.063]
[1744517908024,21.81005339,131.21,131.2,0.063]
[1744517908524,40.60186382,131.21,131.2,0.063]
[1744517908725,62.69624035,131.21,131.2,0.063]
[1744517909022,70.31754035,131.21,131.2,0.063]
[1744517909622,26.0,131.18,131.17,0.063]
[1744517909805,47.81005339,131.18,131.17,0.063]
[1744517910428,47.95221496,131.18,131.17,0.063]
[1744517910825,47.81005339,131.18,131.17,0.063]
[1744517911022,55.57531496,131.18,131.17,0.063]
[1744517914327,74.22496382,131.18,131.17,0.063]
[1744517915131,0.14216157,131.17,131.14,0.063]
[1744517915303,21.81005339,131.15,131.14,0.063]
[1744517915706,21.95221496,131.15,131.14,0.063]
[1744517917026,21.81005339,131.15,131.14,0.063]
[1744517917324,102.81005339,131.16,131.14,0.063]
[1744517917624,21.81005339,131.15,131.14,0.063]
[1744517918628,21.81005339,131.17,131.14,0.063]
[1744517919721,81.0,131.25,131.16,21.81005339]
[1744517920009,21.81005339,131.22,131.17,21.81005339]
[1744517920416,21.81005339,131.22,131.18,7.6231]
[1744517920808,21.81005339,131.23,131.18,29.43315339]
[1744517921006,102.81005339,131.25,131.2,21.81005339]
[1744517921202,102.81005339,131.25,131.19,0.28432314]
[1744517921409,102.81005339,131.25,131.2,21.81005339]
[1744517921928,21.81005339,131.27,131.22,21.81005339]
[1744517922111,21.81005339,131.26,131.21,21.81005339]